fUSD/lending_fUSD_20250616
["ID","MTS","AMOUNT","RATE_DAILY","PERIOD"]
[366129262,1750077079383,-490.0,0.00016931,2]
[366129263,1750077079393,-1057.21,0.00016931,2]
[366129264,1750077079403,-490.0,0.00016931,2]
[366129265,1750077079413,-490.0,0.00016931,2]
[366129266,1750077079423,-490.0,0.00016931,2]
[366129267,1750077079433,-490.0,0.00016931,2]
[366129268,1750077079443,-1851.59,0.00016931,2]
[366129269,1750077079453,-490.0,0.00016931,2]
[366129270,1750077079463,-490.0,0.00016931,2]
[366129271,1750077079474,-1726.18,0.00016931,2]
[366129272,1750077079483,-1031.77,0.00016931,2]
[366129273,1750077079493,-490.0,0.00016931,2]
[366129274,1750077079503,-490.0,0.00016931,2]
[366129275,1750077079513,-490.0,0.00016931,2]
[366129276,1750077079523,-622.91,0.00016931,2]
[366129277,1750077079534,-490.0,0.00016931,2]
[366129278,1750077079544,-490.0,0.00016931,2]
[366129279,1750077079554,-150.0,0.00016931,2]
[366129280,1750077079564,-846.86,0.00016931,2]
[366129281,1750077079574,-490.0,0.00016931,2]
[366129282,1750077079584,-490.0,0.00016931,2]
[366129283,1750077079593,-863.54,0.00016931,2]
[366129284,1750077079603,-914.73,0.00016931,2]
[366129285,1750077079614,-490.0,0.00016931,2]
[366129286,1750077079624,-1339.32,0.00016931,2]
[366129287,1750077079638,-432.661253,0.00016931,2]
[366129288,1750077079655,-432.661253,0.00016931,2]
[366129289,1750077079676,-490.0,0.00016931,2]
[366129290,1750077079691,-8387.56115386,0.00016931,2]
[366129291,1750077079704,-490.0,0.00016931,2]
[366129292,1750077079718,-490.0,0.00016931,2]
[366129293,1750077079733,-655.55,0.00016931,2]
[366129294,1750077079748,-490.0,0.00016931,2]
[366129295,1750077079764,-432.661253,0.00016931,2]
[366129296,1750077079779,-432.661253,0.00016931,2]
[366129297,1750077079793,-490.0,0.00016931,2]
[366129298,1750077079807,-551.55,0.00016931,2]
[366129299,1750077079818,-490.0,0.00016931,2]
[366129300,1750077079830,-928.7,0.00016931,2]
[366129301,1750077079845,-1029.82,0.00016931,2]
[366129302,1750077079860,-490.0,0.00016931,2]
[366129303,1750077079875,-1403.71,0.00016931,2]
[366129304,1750077079888,-490.0,0.00016931,2]
[366129305,1750077079903,-150.0,0.00016931,2]
[366129306,1750077079918,-490.0,0.00016931,2]
[366129307,1750077079933,-965.34,0.00016931,2]
[366129308,1750077079947,-981.12,0.00016931,2]
[366129309,1750077079961,-490.0,0.00016931,2]
[366129310,1750077079977,-490.0,0.00016931,2]
[366129311,1750077079992,-490.0,0.00016931,2]
[366129312,1750077080005,-28427.1388156,0.00016931,2]
[366129313,1750077081225,-386.2949996,0.00016438,2]
[366129314,1750077081426,-402.9750004,0.00016438,2]
[366129315,1750077081440,-217.31420575,0.00016602,2]
[366129317,1750077292969,168.0,0.00015015,2]
[366129318,1750077295162,168.0,0.00015138,2]
[366129319,1750077364832,500.0,0.00024658,120]
[366129320,1750077375033,500.0,0.00024658,120]
[366129322,1750077441256,758.0,0.00024658,120]
[366129323,1750077491799,204.0,0.00015184,2]
[366129325,1750077531263,184.74,0.00012385,2]
[366129330,1750077931025,180.19,0.00015409,2]
[366129331,1750077935387,1000.0,0.00015409,2]
[366129332,1750077937608,154.0,0.00015238,2]
[366129333,1750078008769,150.85,0.00013699,2]
[366129335,1750078071876,154.94,0.00015398,2]
[366129343,1750078193703,270.48742512,0.00015343,7]
[366129344,1750078204677,16504.52,0.00015397,2]
[366129348,1750078208629,25510.964076,7.945e-05,2]
[366129349,1750078211987,202.0,0.00014729,2]
[366129350,1750078212297,202.0,0.00015385,2]
[366129354,1750078232438,-162.371147,0.00015506,2]
[366129355,1750078232449,-437.628853,0.00015533,2]
[366129356,1750078232482,-292.54502165,0.00015533,2]
[366129357,1750078232494,-90.23612535,0.00015533,2]
[366129358,1750078232504,-250.0,0.00015606,2]
[366129359,1750078232514,-408.23,0.0001568,2]
[366129360,1750078232524,-2939.0,0.00015834,2]
[366129361,1750078232534,-202.0,0.00016041,3]
[366129362,1750078232544,-1200.0,0.00016163,2]
[366129363,1750078232553,-700.0,0.00016164,2]
[366129364,1750078232564,-500.0,0.00016164,2]
[366129365,1750078232573,-500.0,0.00016164,2]
[366129366,1750078232584,-211.0,0.0001619,2]
[366129367,1750078232594,-300.0,0.00016192,2]
[366129368,1750078232603,-304.17,0.00016193,2]
[366129369,1750078232613,-301.02,0.00016193,2]
[366129370,1750078232623,-3021.062152,0.00016211,2]
[366129371,1750078232633,-498.69,0.00016213,2]
[366129372,1750078232643,-301.89,0.00016234,2]
[366129373,1750078232652,-305.53,0.00016234,2]
[366129374,1750078232662,-464.0,0.00016273,2]
[366129375,1750078232672,-676.0,0.00016293,2]
[366129376,1750078232682,-170.82,0.000163,2]
[366129377,1750078232693,-1598.67,0.000163,2]
[366129378,1750078232702,-170.82,0.000163,2]
[366129379,1750078232712,-170.82,0.000163,2]
[366129380,1750078232721,-170.55,0.000163,2]
[366129381,1750078232731,-57273.78830802,0.00016302,2]
[366129382,1750078232740,-207.4,0.00016326,2]
[366129383,1750078232750,-1957.856,0.00016326,2]
[366129384,1750078232760,-152.86025002,0.00016338,2]
[366129386,1750078232769,-183.81691542,0.00016338,2]
[366129388,1750078232779,-164.82223643,0.00016338,2]
[366129389,1750078232788,-556.87923795,0.00016338,2]
[366129390,1750078232799,-600.0,0.00016338,4]
[366129391,1750078232809,-305.1,0.00016338,2]
[366129392,1750078232818,-300.02,0.00016338,2]
[366129393,1750078232829,-301.02,0.00016338,2]
[366129394,1750078232839,-3956.5751,0.00016338,2]
[366129395,1750078232849,-168.0,0.00016351,2]
[366129396,1750078232859,-240.72,0.000164,2]
[366129397,1750078232870,-196.8,0.000164,2]
[366129399,1750078232881,-1593.41,0.000164,2]
[366129401,1750078232891,-465.94,0.000164,2]
[366129403,1750078232902,-600.0,0.00016418,4]
[366129405,1750078232912,-152.86025,0.00016418,2]
[366129407,1750078232922,-211.0,0.0001642,2]
[366129409,1750078232931,-199.45,0.00016428,2]
[366129411,1750078232941,-151.0,0.00016428,2]
[366129413,1750078232951,-151.0,0.00016428,2]
[366129415,1750078232961,-500.0,0.00016437,2]
[366129417,1750078232971,-293.57586069,0.00016437,2]
[366129419,1750078232981,-500.0,0.00016437,2]
[366129421,1750078232992,-500.0,0.00016437,2]
[366129423,1750078233002,-500.0,0.00016437,2]
[366129425,1750078233011,-247.86254168,0.00016437,2]
[366129427,1750078233021,-649.025,0.00016437,2]
[366129429,1750078233031,-2141.93244809,0.00016437,2]
[366129431,1750078233042,-209.92076513,0.00016437,2]
[366129433,1750078233053,-595.79399314,0.00016437,2]
[366129435,1750078233064,-202.06863065,0.00016437,2]
[366129437,1750078233073,-188.50724984,0.00016437,2]
[366129439,1750078233084,-423.69312593,0.00016438,2]
[366129441,1750078233094,-490.0,0.00016438,2]
[366129443,1750078233103,-490.0,0.00016438,2]
[366129445,1750078233113,-598.38004121,0.00016438,2]
[366129447,1750078233123,-490.0,0.00016438,2]
[366129449,1750078233133,-490.0,0.00016438,2]
[366129451,1750078233143,-490.0,0.00016438,2]
[366129453,1750078233153,-490.0,0.00016438,2]
[366129455,1750078233162,-490.0,0.00016438,2]
[366129457,1750078233172,-490.0,0.00016438,2]
[366129459,1750078233181,-490.0,0.00016438,2]
[366129461,1750078233191,-490.0,0.00016438,2]
[366129463,1750078233200,-490.0,0.00016438,2]
[366129465,1750078233210,-447.3821114,0.00016438,2]
[366129494,1750078233509,-531.77,0.00016438,2]
[366129497,1750078233523,-490.0,0.00016438,2]
[366129498,1750078233535,-490.0,0.00016438,2]
[366129500,1750078233545,-490.0,0.00016438,2]
[366129502,1750078233556,-490.0,0.00016438,2]
[366129504,1750078233567,-490.0,0.00016438,2]
[366129506,1750078233577,-490.0,0.00016438,2]
[366129508,1750078233587,-490.0,0.00016438,2]
[366129510,1750078233597,-490.0,0.00016438,2]
[366129512,1750078233607,-494.55262997,0.00016438,2]
[366129514,1750078233618,-490.0,0.00016438,2]
[366129516,1750078233627,-490.0,0.00016438,2]
[366129517,1750078233637,-490.0,0.00016438,2]
[366129519,1750078233647,-490.0,0.00016438,2]
[366129521,1750078233657,-490.0,0.00016438,2]
[366129523,1750078233667,-490.0,0.00016438,2]
[366129524,1750078233678,-490.0,0.00016438,2]
[366129526,1750078233687,-490.0,0.00016438,2]
[366129528,1750078233697,-490.0,0.00016438,2]
[366129530,1750078233707,-490.0,0.00016438,2]
[366129532,1750078233717,-490.0,0.00016438,2]
[366129533,1750078233727,-490.0,0.00016438,2]
[366129535,1750078233738,-490.0,0.00016438,2]
[366129537,1750078233749,-490.0,0.00016438,2]
[366129539,1750078233760,-517.41551694,0.00016438,2]
[366129541,1750078233771,-490.0,0.00016438,2]
[366129542,1750078233780,-490.0,0.00016438,2]
[366129544,1750078233790,-490.0,0.00016438,2]
[366129546,1750078233800,-490.0,0.00016438,2]
[366129548,1750078233810,-490.0,0.00016438,2]
[366129549,1750078233820,-490.0,0.00016438,2]
[366129550,1750078233830,-549.26843898,0.00016438,2]
[366129552,1750078233840,-492.11059549,0.00016438,2]
[366129553,1750078233850,-490.0,0.00016438,2]
[366129555,1750078233860,-490.0,0.00016438,2]
[366129557,1750078233870,-490.0,0.00016438,2]
[366129558,1750078233880,-490.0,0.00016438,2]
[366129560,1750078233890,-490.0,0.00016438,2]
[366129562,1750078233900,-474.34155271,0.00016438,2]
[366129563,1750078233911,-490.0,0.00016438,2]
[366129565,1750078233921,-490.0,0.00016438,2]
[366129567,1750078233931,-490.0,0.00016438,2]
[366129569,1750078233941,-490.0,0.00016438,2]
[366129570,1750078233950,-533.26,0.00016438,2]
[366129572,1750078233960,-490.0,0.00016438,2]
[366129573,1750078233970,-490.0,0.00016438,2]
[366129575,1750078233979,-490.0,0.00016438,2]
[366129577,1750078233990,-490.0,0.00016438,2]
[366129578,1750078233999,-490.0,0.00016438,2]
[366129580,1750078234009,-490.0,0.00016438,2]
[366129582,1750078234020,-490.0,0.00016438,2]
[366129584,1750078234030,-495.22030436,0.00016438,2]
[366129585,1750078234039,-490.0,0.00016438,2]
[366129587,1750078234049,-490.0,0.00016438,2]
[366129589,1750078234059,-490.0,0.00016438,2]
[366129590,1750078234069,-490.0,0.00016438,2]
[366129592,1750078234079,-490.0,0.00016438,2]
[366129594,1750078234089,-490.0,0.00016438,2]
[366129596,1750078234099,-490.0,0.00016438,2]
[366129598,1750078234110,-490.0,0.00016438,2]
[366129600,1750078234120,-490.0,0.00016438,2]
[366129601,1750078234130,-301.40794931,0.00016438,2]
[366129603,1750078234142,-490.0,0.00016438,2]
[366129605,1750078234152,-490.0,0.00016438,2]
[366129607,1750078234163,-800.39,0.00016438,2]
[366129609,1750078234173,-490.0,0.00016438,2]
[366129610,1750078234183,-490.0,0.00016438,2]
[366129612,1750078234192,-490.0,0.00016438,2]
[366129614,1750078234202,-859.06,0.00016438,2]
[366129615,1750078234212,-490.0,0.00016438,2]
[366129617,1750078234222,-490.0,0.00016438,2]
[366129619,1750078234232,-490.0,0.00016438,2]
[366129620,1750078234243,-490.0,0.00016438,2]
[366129622,1750078234253,-490.0,0.00016438,2]
[366129624,1750078234263,-492.3076128,0.00016438,2]
[366129625,1750078234274,-490.0,0.00016438,2]
[366129627,1750078234286,-490.0,0.00016438,2]
[366129629,1750078234298,-490.0,0.00016438,2]
[366129631,1750078234310,-490.0,0.00016438,2]
[366129632,1750078234320,-490.0,0.00016438,2]
[366129634,1750078234331,-490.0,0.00016438,2]
[366129636,1750078234342,-490.0,0.00016438,2]
[366129638,1750078234353,-791.13,0.00016438,2]
[366129640,1750078234363,-490.0,0.00016438,2]
[366129642,1750078234373,-490.0,0.00016438,2]
[366129644,1750078234386,-942.47,0.00016438,2]
[366129646,1750078234397,-490.0,0.00016438,2]
[366129648,1750078234407,-490.0,0.00016438,2]
[366129649,1750078234417,-490.0,0.00016438,2]
[366129651,1750078234427,-593.62,0.00016438,2]
[366129653,1750078234437,-494.70805296,0.00016438,2]
[366129654,1750078234447,-781.91,0.00016438,2]
[366129656,1750078234456,-490.0,0.00016438,2]
[366129658,1750078234467,-490.0,0.00016438,2]
[366129660,1750078234477,-207.78711982,0.00016438,2]
[366129662,1750078234487,-490.0,0.00016438,2]
[366129663,1750078234498,-564.99,0.00016438,2]
[366129665,1750078234508,-490.0,0.00016438,2]
[366129667,1750078234519,-490.0,0.00016438,2]
[366129669,1750078234529,-490.0,0.00016438,2]
[366129670,1750078234539,-490.0,0.00016438,2]
[366129672,1750078234549,-601.9,0.00016438,2]
[366129674,1750078234559,-490.0,0.00016438,2]
[366129676,1750078234569,-632.71,0.00016438,2]
[366129677,1750078234579,-519.22837315,0.00016438,2]
[366129679,1750078234589,-628.6,0.00016438,2]
[366129681,1750078234599,-490.0,0.00016438,2]
[366129683,1750078234609,-490.0,0.00016438,2]
[366129685,1750078234619,-702.89,0.00016438,2]
[366129687,1750078234628,-490.0,0.00016438,2]
[366129689,1750078234638,-490.0,0.00016438,2]
[366129690,1750078234648,-490.0,0.00016438,2]
[366129692,1750078234658,-490.0,0.00016438,2]
[366129694,1750078234668,-697.65,0.00016438,2]
[366129696,1750078234678,-490.0,0.00016438,2]
[366129697,1750078234689,-490.0,0.00016438,2]
[366129699,1750078234700,-615.52,0.00016438,2]
[366129701,1750078234709,-1032.07,0.00016438,2]
[366129703,1750078234719,-854.83,0.00016438,2]
[366129705,1750078234729,-490.0,0.00016438,2]
[366129706,1750078234738,-490.0,0.00016438,2]
[366129708,1750078234749,-490.0,0.00016438,2]
[366129710,1750078234759,-490.0,0.00016438,2]
[366129712,1750078234768,-795.08,0.00016438,2]
[366129714,1750078234778,-490.0,0.00016438,2]
[366129715,1750078234787,-490.0,0.00016438,2]
[366129717,1750078234796,-432.20288992,0.00016438,2]
[366129719,1750078234807,-490.0,0.00016438,2]
[366129721,1750078234816,-490.0,0.00016438,2]
[366129723,1750078234826,-492.75312454,0.00016438,2]
[366129724,1750078234835,-490.0,0.00016438,2]
[366129726,1750078234845,-999.27,0.00016438,2]
[366129728,1750078234854,-490.0,0.00016438,2]
[366129730,1750078234864,-490.0,0.00016438,2]
[366129732,1750078234874,-1282.78,0.00016438,2]
[366129734,1750078234884,-490.0,0.00016438,2]
[366129735,1750078234894,-490.0,0.00016438,2]
[366129737,1750078234904,-490.0,0.00016438,2]
[366129739,1750078234913,-658.39,0.00016438,2]
[366129741,1750078234923,-951.07,0.00016438,2]
[366129743,1750078234932,-507.43,0.00016438,2]
[366129744,1750078234941,-490.0,0.00016438,2]
[366129746,1750078234951,-916.94,0.00016438,2]
[366129748,1750078234960,-496.27785393,0.00016438,2]
[366129750,1750078234969,-490.0,0.00016438,2]
[366129752,1750078234979,-490.0,0.00016438,2]
[366129754,1750078234989,-1075.06,0.00016438,2]
[366129755,1750078235000,-490.0,0.00016438,2]
[366129757,1750078235010,-490.0,0.00016438,2]
[366129759,1750078235020,-490.0,0.00016438,2]
[366129761,1750078235031,-494.135658,0.00016438,2]
[366129763,1750078235041,-524.9994521,0.00016438,2]
[366129764,1750078235051,-490.0,0.00016438,2]
[366129766,1750078235060,-462.32812142,0.00016438,2]
[366129768,1750078235070,-835.6,0.00016438,2]
[366129770,1750078235080,-838.2,0.00016438,2]
[366129772,1750078235090,-490.0,0.00016438,2]
[366129773,1750078235099,-1510.4,0.00016438,2]
[366129775,1750078235109,-490.0,0.00016438,2]
[366129777,1750078235119,-490.0,0.00016438,2]
[366129779,1750078235130,-490.0,0.00016438,2]
[366129781,1750078235140,-490.0,0.00016438,2]
[366129783,1750078235150,-574.17,0.00016438,2]
[366129785,1750078235160,-490.0,0.00016438,2]
[366129787,1750078235170,-597.79,0.00016438,2]
[366129788,1750078235179,-490.0,0.00016438,2]
[366129790,1750078235188,-490.0,0.00016438,2]
[366129792,1750078235198,-490.0,0.00016438,2]
[366129794,1750078235208,-978.33,0.00016438,2]
[366129796,1750078235218,-490.0,0.00016438,2]
[366129798,1750078235228,-490.0,0.00016438,2]
[366129799,1750078235237,-490.0,0.00016438,2]
[366129801,1750078235247,-302.93,0.00016438,2]
[366129802,1750078235257,-490.0,0.00016438,2]
[366129803,1750078235267,-490.0,0.00016438,2]
[366129804,1750078235277,-490.0,0.00016438,2]
[366129805,1750078235287,-490.0,0.00016438,2]
[366129806,1750078235297,-847.55,0.00016438,2]
[366129807,1750078235311,-578.08,0.00016438,2]
[366129808,1750078235322,-512.09,0.00016438,2]
[366129809,1750078235332,-490.0,0.00016438,2]
[366129810,1750078235342,-490.0,0.00016438,2]
[366129811,1750078235353,-784.77,0.00016438,2]
[366129812,1750078235363,-812.61,0.00016438,2]
[366129813,1750078235373,-490.0,0.00016438,2]
[366129814,1750078235385,-490.0,0.00016438,2]
[366129815,1750078235396,-490.0,0.00016438,2]
[366129816,1750078235406,-490.0,0.00016438,2]
[366129818,1750078235416,-490.0,0.00016438,2]
[366129819,1750078235426,-925.06,0.00016438,2]
[366129821,1750078235436,-490.0,0.00016438,2]
[366129823,1750078235445,-953.35,0.00016438,2]
[366129825,1750078235457,-722.21,0.00016438,2]
[366129827,1750078235466,-918.87,0.00016438,2]
[366129829,1750078235475,-490.0,0.00016438,2]
[366129831,1750078235485,-490.0,0.00016438,2]
[366129833,1750078235495,-490.0,0.00016438,2]
[366129835,1750078235505,-490.0,0.00016438,2]
[366129837,1750078235514,-1620.14,0.00016438,2]
[366129839,1750078235523,-1012.33,0.00016438,2]
[366129841,1750078235532,-486.37683292,0.00016438,2]
[366129843,1750078235541,-490.0,0.00016438,2]
[366129845,1750078235551,-490.0,0.00016438,2]
[366129847,1750078235561,-498.92,0.00016438,2]
[366129849,1750078235570,-490.0,0.00016438,2]
[366129851,1750078235579,-495.47675167,0.00016438,2]
[366129853,1750078235588,-1198.92,0.00016438,2]
[366129855,1750078235598,-490.0,0.00016438,2]
[366129857,1750078235606,-902.8,0.00016438,2]
[366129859,1750078235616,-490.0,0.00016438,2]
[366129861,1750078235625,-490.0,0.00016438,2]
[366129863,1750078235634,-879.86,0.00016438,2]
[366129865,1750078235644,-490.0,0.00016438,2]
[366129867,1750078235654,-490.0,0.00016438,2]
[366129869,1750078235663,-490.0,0.00016438,2]
[366129871,1750078235673,-490.0,0.00016438,2]
[366129873,1750078235682,-490.0,0.00016438,2]
[366129875,1750078235692,-538.13,0.00016438,2]
[366129877,1750078235702,-490.0,0.00016438,2]
[366129879,1750078235711,-755.6,0.00016438,2]
[366129881,1750078235720,-490.0,0.00016438,2]
[366129883,1750078235731,-538.85,0.00016438,2]
[366129885,1750078235740,-490.0,0.00016438,2]
[366129887,1750078235751,-573.61,0.00016438,2]
[366129889,1750078235762,-490.0,0.00016438,2]
[366129891,1750078235772,-490.0,0.00016438,2]
[366129893,1750078235781,-490.0,0.00016438,2]
[366129894,1750078235791,-490.0,0.00016438,2]
[366129897,1750078235800,-490.0,0.00016438,2]
[366129899,1750078235810,-957.53,0.00016438,2]
[366129900,1750078235820,-413.30830181,0.00016438,2]
[366129902,1750078235829,-490.0,0.00016438,2]
[366129903,1750078235839,-490.0,0.00016438,2]
[366129905,1750078235848,-490.0,0.00016438,2]
[366129907,1750078235858,-490.0,0.00016438,2]
[366129909,1750078235867,-844.67,0.00016438,2]
[366129911,1750078235876,-783.848977,0.00016438,2]
[366129912,1750078235886,-490.21,0.00016438,2]
[366129914,1750078235896,-490.0,0.00016438,2]
[366129916,1750078235906,-1228.25,0.00016438,2]
[366129918,1750078235915,-490.0,0.00016438,2]
[366129920,1750078235925,-523.89,0.00016438,2]
[366129922,1750078235935,-972.82,0.00016438,2]
[366129924,1750078235945,-490.0,0.00016438,2]
[366129926,1750078235954,-490.0,0.00016438,2]
[366129928,1750078235964,-561.05,0.00016438,2]
[366129930,1750078235974,-490.0,0.00016438,2]
[366129932,1750078235983,-490.0,0.00016438,2]
[366129934,1750078235993,-490.0,0.00016438,2]
[366129936,1750078236001,-490.0,0.00016438,2]
[366129937,1750078236011,-954.74,0.00016438,2]
[366129939,1750078236020,-1291.91,0.00016438,2]
[366129941,1750078236031,-559.46,0.00016438,2]
[366129943,1750078236041,-490.0,0.00016438,2]
[366129945,1750078236050,-490.0,0.00016438,2]
[366129947,1750078236060,-490.0,0.00016438,2]
[366129949,1750078236070,-397.02487235,0.00016438,2]
[366129951,1750078236080,-490.0,0.00016438,2]
[366129953,1750078236090,-1700.48,0.00016438,2]
[366129955,1750078236100,-553.61,0.00016438,2]
[366129957,1750078236110,-490.0,0.00016438,2]
[366129959,1750078236120,-490.0,0.00016438,2]
[366129961,1750078236129,-1466.76,0.00016438,2]
[366129963,1750078236139,-1013.000677,0.00016438,2]
[366129965,1750078236149,-490.0,0.00016438,2]
[366129967,1750078236159,-490.0,0.00016438,2]
[366129969,1750078236168,-490.0,0.00016438,2]
[366129971,1750078236178,-581.76,0.00016438,2]
[366129973,1750078236187,-490.0,0.00016438,2]
[366129975,1750078236197,-490.0,0.00016438,2]
[366129977,1750078236206,-490.0,0.00016438,2]
[366129979,1750078236216,-491.84978301,0.00016438,2]
[366129981,1750078236225,-490.0,0.00016438,2]
[366129983,1750078236235,-1322.92,0.00016438,2]
[366129985,1750078236246,-490.0,0.00016438,2]
[366129987,1750078236256,-1072.99,0.00016438,2]
[366129988,1750078236265,-490.0,0.00016438,2]
[366129990,1750078236275,-2069.65,0.00016438,2]
[366129992,1750078236285,-490.0,0.00016438,2]
[366129994,1750078236295,-647.66,0.00016438,2]
[366129996,1750078236307,-1500.34,0.00016438,2]
[366129998,1750078236318,-490.0,0.00016438,2]
[366130000,1750078236328,-490.0,0.00016438,2]
[366130002,1750078236338,-300.0,0.00016438,2]
[366130004,1750078236347,-490.0,0.00016438,2]
[366130006,1750078236358,-490.0,0.00016438,2]
[366130008,1750078236368,-741.0,0.00016438,2]
[366130010,1750078236379,-490.0,0.00016438,2]
[366130012,1750078236390,-490.0,0.00016438,2]
[366130014,1750078236400,-747.33,0.00016438,2]
[366130016,1750078236410,-490.0,0.00016438,2]
[366130018,1750078236419,-1209.15,0.00016438,2]
[366130020,1750078236429,-2243.25,0.00016438,2]
[366130022,1750078236438,-285.09011504,0.00016438,2]
[366130024,1750078236449,-1515.6,0.00016438,2]
[366130026,1750078236458,-490.0,0.00016438,2]
[366130028,1750078236468,-583.67,0.00016438,2]
[366130030,1750078236478,-490.0,0.00016438,2]
[366130032,1750078236488,-490.0,0.00016438,2]
[366130034,1750078236498,-490.0,0.00016438,2]
[366130036,1750078236508,-490.0,0.00016438,2]
[366130038,1750078236518,-490.0,0.00016438,2]
[366130040,1750078236528,-490.0,0.00016438,2]
[366130042,1750078236538,-1227.71,0.00016438,2]
[366130044,1750078236547,-490.0,0.00016438,2]
[366130046,1750078236557,-792.68,0.00016438,2]
[366130048,1750078236567,-1791.94,0.00016438,2]
[366130050,1750078236577,-490.0,0.00016438,2]
[366130052,1750078236586,-490.0,0.00016438,2]
[366130054,1750078236596,-493.94294798,0.00016438,2]
[366130056,1750078236605,-490.0,0.00016438,2]
[366130058,1750078236614,-490.0,0.00016438,2]
[366130059,1750078236623,-490.0,0.00016438,2]
[366130061,1750078236633,-490.0,0.00016438,2]
[366130063,1750078236642,-490.0,0.00016438,2]
[366130065,1750078236652,-1187.73,0.00016438,2]
[366130067,1750078236661,-1218.93,0.00016438,2]
[366130069,1750078236671,-490.0,0.00016438,2]
[366130071,1750078236680,-849.53,0.00016438,2]
[366130073,1750078236689,-475.08275588,0.00016438,2]
[366130075,1750078236698,-1365.71,0.00016438,2]
[366130077,1750078236708,-490.0,0.00016438,2]
[366130079,1750078236717,-490.0,0.00016438,2]
[366130081,1750078236727,-490.0,0.00016438,2]
[366130083,1750078236736,-495.85004879,0.00016438,2]
[366130085,1750078236746,-490.0,0.00016438,2]
[366130087,1750078236756,-1125.96,0.00016438,2]
[366130089,1750078236766,-490.0,0.00016438,2]
[366130091,1750078236775,-1745.39,0.00016438,2]
[366130093,1750078236785,-490.0,0.00016438,2]
[366130095,1750078236795,-490.0,0.00016438,2]
[366130097,1750078236804,-490.0,0.00016438,2]
[366130099,1750078236814,-490.0,0.00016438,2]
[366130101,1750078236823,-490.0,0.00016438,2]
[366130103,1750078236833,-490.0,0.00016438,2]
[366130105,1750078236842,-490.0,0.00016438,2]
[366130107,1750078236851,-490.0,0.00016438,2]
[366130109,1750078236861,-490.0,0.00016438,2]
[366130111,1750078236870,-1181.35,0.00016438,2]
[366130113,1750078236879,-490.0,0.00016438,2]
[366130115,1750078236888,-1796.24,0.00016438,2]
[366130117,1750078236898,-490.0,0.00016438,2]
[366130119,1750078236907,-490.0,0.00016438,2]
[366130121,1750078236917,-1142.2,0.00016438,2]
[366130122,1750078236926,-634.43,0.00016438,2]
[366130124,1750078236936,-490.0,0.00016438,2]
[366130126,1750078236945,-490.0,0.00016438,2]
[366130128,1750078236954,-530.96,0.00016438,2]
[366130130,1750078236964,-490.0,0.00016438,2]
[366130132,1750078236973,-944.57,0.00016438,2]
[366130134,1750078236982,-490.0,0.00016438,2]
[366130136,1750078236992,-615.67129126,0.00016438,2]
[366130138,1750078237001,-490.0,0.00016438,2]